bitfinex-derivatives/quotes_ETHF0:USTF0_20251210
["timestamp","ask_amount","ask_price","bid_price","bid_amount"]
[1765380384490,1.4109,3324.6,3324.5,0.15345152]
[1765380384789,1.4109,3324.6,3324.5,0.88505152]
[1765380384987,1.4109,3324.6,3324.5,1.61445152]
[1765380384988,0.7113,3324.6,3324.5,1.61445152]
[1765380385393,0.7113,3324.6,3324.5,0.15345152]
[1765380385394,1.4109,3324.6,3324.5,0.15345152]
[1765380386493,0.7113,3324.6,3324.5,0.88505152]
[1765380386689,3.2078,3324.9,3324.5,1.61445152]
[1765380386885,0.7113,3324.6,3324.5,1.61445152]
[1765380387287,1.4109,3324.6,3324.5,0.15345152]
[1765380387792,1.4109,3324.6,3324.5,0.00305152]
[1765380388391,1.3852,3324.6,3324.5,0.73465152]
[1765380388585,4.82208497,3325.9,3324.8,1.3812]
[1765380388785,3.61472864,3325.5,3324.8,1.3812]
[1765380388988,0.86963094,3325.4,3324.8,1.3812]
[1765380389294,1.3903,3324.8,3324.7,0.15039]
[1765380389494,1.3903,3324.8,3324.7,0.85669]
[1765380389993,1.3903,3324.8,3324.7,0.15039]
[1765380391085,0.7164,3324.8,3324.7,1.53159]
[1765380391289,0.7164,3324.8,3324.7,0.15039]
[1765380391290,1.3903,3324.8,3324.7,0.15039]
[1765380391989,0.7164,3324.8,3324.7,1.53159]
[1765380392791,1.3903,3324.8,3324.7,0.15039]
[1765380394091,0.1324,3323.6,3323.5,1.8033]
[1765380394291,0.1324,3323.6,3323.5,0.57254]
[1765380394494,0.2648,3323.6,3323.5,0.57254]
[1765380394999,0.2648,3323.6,3323.5,0.57580552]
[1765380395185,0.2648,3323.6,3322.8,3.35827]
[1765380395386,0.1324,3322.6,3322.2,0.1505]
[1765380395594,3.4726,3322.6,3322.2,0.1505]
[1765380396289,3.47639935,3322.6,3322.5,0.42424476]
[1765380396690,3.21159935,3322.6,3322.5,1.80544476]
[1765380396896,3.34399935,3322.6,3322.5,1.15013714]
[1765380397301,3.47639935,3322.6,3322.5,0.44383714]
[1765380398004,3.47639935,3322.6,3322.5,0.45828966]
[1765380398194,3.34399935,3322.6,3322.5,0.45828966]
[1765380398490,3.34399935,3322.6,3322.5,0.47274218]
[1765380398692,3.21159935,3322.6,3322.5,1.13054476]
[1765380398891,3.47639935,3322.6,3322.5,0.4750229]
[1765380399592,3.21159935,3322.6,3322.5,1.8562229]
[1765380399800,3.21159935,3322.6,3322.5,2.0067129]
[1765380400398,3.47639935,3322.6,3322.5,0.6255129]
[1765380402196,0.159,3321.6,3321.5,0.4221]
[1765380402495,3.2078,3321.6,3321.5,1.1284]
[1765380402700,4.07640792,3321.6,3321.5,1.1284]
[1765380402896,4.23540792,3321.6,3321.5,0.4221]
[1765380403400,4.23540792,3321.6,3321.5,0.00237441]
[1765380404393,4.15590792,3321.6,3321.5,0.00237441]
[1765380404592,4.07640792,3321.6,3321.5,0.70867441]
[1765380404901,4.07640792,3321.6,3321.5,0.00237441]
[1765380404902,4.23540792,3321.6,3321.5,0.00237441]
[1765380405405,0.0795,3321.1,3321.0,1.1284]
[1765380405699,0.0771,3321.1,3321.0,1.1284]
[1765380405899,0.94570792,3321.1,3321.0,1.1284]
[1765380406298,0.86860792,3321.1,3321.0,1.80419543]
[1765380406594,0.86860792,3321.1,3321.0,1.95475543]
[1765380406790,3.2078,3321.2,3321.1,0.15055]
[1765380406992,3.2078,3321.2,3321.1,1.53175]
[1765380407600,3.2078,3321.6,3321.5,1.95383]
[1765380407994,3.2849,3321.6,3321.5,1.27893]
[1765380408302,3.2078,3321.6,3321.5,1.95383]
[1765380408988,3.2078,3321.6,3321.5,7.95383]
[1765380409189,3.2078,3321.6,3321.5,1.95383]
[1765380409394,3.2849,3321.6,3321.5,1.27893]
[1765380410002,3.2078,3321.6,3321.5,1.95383]
[1765380411200,4.07486409,3321.6,3321.5,1.95383]
[1765380411405,0.00451107,3321.9,3321.8,1.53172]
[1765380411597,0.87154153,3321.9,3321.8,1.53172]
[1765380412399,3.2078,3322.5,3322.2,0.4221]
[1765380412596,3.2078,3322.5,3322.4,1.3812]
[1765380412995,3.2078,3322.5,3322.4,1.53169]
[1765380420009,3.8912,3322.5,3322.4,1.53169]
[1765380420410,3.2078,3322.5,3322.4,1.53169]
[1765380421605,4.605,3322.5,3322.4,0.85679]
[1765380421804,4.605,3322.5,3322.4,0.15049]
[1765380422200,0.6834,3321.3,3321.2,0.86545]
[1765380422600,1.3972,3321.3,3321.2,0.15055]
[1765380422806,1.3972,3320.7,3320.6,0.15057]
[1765380423008,1.3972,3320.4,3320.0,0.3997]
[1765380423210,2.812362,3321.7,3319.3,3.2078]
[1765380423211,0.6834,3319.4,3319.3,3.2078]
[1765380423398,0.6834,3319.4,3319.1,0.15064]
[1765380423399,3.2078,3319.7,3319.1,0.15064]
[1765380423703,2.52711667,3320.3,3319.1,0.15064]
[1765380423704,1.61027341,3319.9,3319.8,0.7149]
[1765380423909,0.68617883,3319.9,3319.8,0.0022421]
[1765380424112,0.00277883,3319.9,3319.8,1.5648521]
[1765380424303,0.88722084,3319.9,3319.8,1.5648521]
[1765380424605,0.88722084,3319.9,3319.8,0.8677521]
[1765380424800,0.88722084,3319.9,3319.8,1.5648521]
[1765380425808,0.88722084,3319.9,3319.8,7.5648521]
[1765380426008,0.00451107,3320.5,3320.4,1.96228]
[1765380426509,3.2078,3321.1,3321.0,1.412]
[1765380426909,3.21148397,3321.1,3321.0,1.412]
[1765380427113,3.21148397,3321.1,3321.0,0.7149]
[1765380427312,3.21148397,3321.1,3321.0,1.8117]
[1765380427611,3.21148397,3321.1,3321.0,1.96226]
[1765380429005,3.21148397,3321.1,3321.0,0.86546]
[1765380429814,0.00368397,3321.1,3321.0,0.86546]
[1765380430114,0.00368397,3321.1,3321.0,1.56256]
[1765380430307,1.40088397,3321.1,3321.0,0.15056]
[1765380431506,1.40088397,3321.1,3320.7,0.004518]
[1765380431507,1.3972,3320.8,3320.7,0.004518]
[1765380433909,1.3972,3320.8,3320.7,0.155088]
[1765380434114,1.3972,3321.0,3320.9,0.15056]
[1765380434511,1.3972,3320.8,3320.2,0.15059]
[1765380434717,0.4111,3321.0,3320.2,0.15059]
[1765380434718,1.3972,3320.3,3320.2,0.15059]
[1765380435412,4.605,3320.3,3320.2,0.15059]
[1765380435612,3.9142,3320.3,3320.2,0.15059]
[1765380435915,4.605,3320.3,3320.2,0.15059]
[1765380436418,1.3972,3319.9,3319.8,0.0022421]
[1765380437009,1.3972,3319.9,3319.8,0.1528521]
[1765380438220,2.22953683,3319.9,3319.8,0.1528521]
[1765380438415,1.53873683,3319.9,3319.8,0.8268521]
[1765380438714,3.2078,3320.3,3319.8,0.0022421]
[1765380439018,4.605,3320.3,3320.2,0.15059]
[1765380439219,5.43699949,3320.3,3320.2,0.15059]
[1765380439420,4.74619949,3320.3,3320.2,0.82459]
[1765380440022,5.43699949,3320.3,3320.2,0.15059]
[1765380440225,3.2078,3320.3,3320.2,1.52729]
[1765380440615,4.605,3320.3,3320.2,0.15059]
[1765380441119,3.2078,3320.3,3320.2,7.52729]
[1765380441325,0.71008397,3321.1,3321.0,0.82456]
[1765380441614,1.40088397,3321.1,3321.0,3.35836]
[1765380442013,0.00368397,3321.1,3321.0,5.17606]
[1765380442719,0.00238466,3321.4,3321.3,1.52724]
[1765380442917,3.2078,3322.2,3321.7,1.52722]
[1765380443218,0.7064,3321.8,3321.7,0.82452]
[1765380443518,3.9142,3322.2,3322.1,0.674]
[1765380443819,3.21154697,3322.2,3322.1,1.52721]
[1765380444518,0.00374697,3322.2,3322.1,1.52721]
[1765380444916,0.00374697,3322.2,3322.1,0.82451]
[1765380445120,0.00374697,3322.2,3322.1,1.52721]
[1765380446717,0.004518,3322.5,3322.4,1.52719]
[1765380447024,3.2078,3323.8,3323.0,0.15046]
[1765380447324,1.3972,3323.1,3323.0,0.15046]
[1765380447822,1.39932114,3323.1,3323.0,0.15384245]
[1765380448216,1.39932114,3323.1,3323.0,0.00338245]
[1765380448825,0.00212114,3323.1,3323.0,1.40308245]
[1765380449024,1.41522114,3323.1,3323.0,0.00338245]
[1765380450321,0.00212114,3323.1,3323.0,1.56374245]
[1765380450723,1.41522114,3323.1,3323.0,0.15384245]
[1765380451125,0.00212114,3323.1,3323.0,0.15384245]
[1765380451331,0.72372114,3323.1,3323.0,0.83804245]
[1765380451622,1.41522114,3323.1,3323.0,0.15384245]
[1765380452223,0.72372114,3323.1,3323.0,0.83804245]
[1765380452424,1.41522114,3323.1,3323.0,0.15384245]
[1765380454934,0.00212114,3323.1,3323.0,1.98004245]
[1765380455135,0.004518,3323.4,3323.3,1.4099]
[1765380455339,1.417618,3323.4,3323.3,3.35825]
[1765380455528,0.004518,3323.4,3323.3,4.76815]
[1765380456134,0.00761821,3323.4,3323.3,4.76815]
[1765380457133,0.7216,3324.2,3324.1,0.6842]
[1765380457328,3.2078,3324.6,3324.2,0.15041]
[1765380457634,1.4131,3324.3,3324.2,0.15041]
[1765380458340,1.4169253,3324.3,3324.2,0.15041]
[1765380459039,0.7254253,3324.3,3324.2,0.15041]
[1765380459239,0.7254253,3324.3,3324.2,0.83461]
[1765380459436,0.7254253,3324.3,3324.2,0.15041]
[1765380459437,1.4169253,3324.3,3324.2,0.15041]
[1765380461241,0.0038253,3324.3,3324.2,1.56031]
[1765380463449,1.4169253,3324.3,3324.2,0.15041]
[1765380463645,0.0038253,3324.3,3324.2,1.56031]
[1765380464848,1.4169253,3324.3,3324.2,0.15041]
[1765380465541,1.4131,3324.0,3323.9,3.212318]
[1765380466050,1.8552,3324.0,3323.9,0.004518]
[1765380467352,5.063,3324.0,3323.9,0.004518]
[1765380467651,1.4131,3323.5,3323.4,3.2078]
[1765380469550,0.7216,3323.5,3323.4,3.892]
[1765380469753,3.6499,3324.0,3323.9,0.6842]
[1765380469754,3.9294,3324.0,3323.9,0.6842]
[1765380470053,0.7216,3323.8,3323.7,1.56033]
[1765380470552,1.58038039,3323.8,3323.7,1.56033]
[1765380470955,0.85878039,3323.8,3323.7,1.56033]
[1765380471347,0.85878039,3323.8,3323.7,0.15043]
[1765380471348,1.4131,3323.8,3323.7,0.15043]
[1765380471552,2.27188039,3323.8,3323.7,0.15043]
[1765380475252,1.4131,3323.5,3323.4,3.2078]
[1765380475448,2.27188039,3323.5,3323.4,3.2078]
[1765380475851,2.71398039,3323.5,3323.4,3.2078]
[1765380476355,2.27188039,3323.5,3323.4,3.892]
[1765380476654,0.85878039,3323.5,3323.4,4.6177]
[1765380476846,1.58038039,3323.5,3323.4,4.6177]
[1765380477041,1.58038039,3323.5,3323.4,3.892]
[1765380477254,2.27188039,3323.5,3323.4,3.2078]
[1765380477655,4.32385024,3323.5,3323.4,3.2078]
[1765380478253,1.4341,3323.2,3323.1,0.004518]
[1765380478554,3.90703779,3323.2,3323.1,0.004518]
[1765380478959,2.29288039,3323.2,3323.1,0.004518]
[1765380479261,3.90703779,3323.2,3323.1,0.004518]
[1765380479555,2.29288039,3323.2,3323.1,0.004518]
[1765380480955,2.29288039,3323.2,3323.1,1.478318]
[1765380480956,0.85878039,3323.2,3323.1,1.478318]
[1765380482061,2.29288039,3323.2,3323.1,0.154978]
[1765380482253,1.4341,3322.6,3322.5,3.2078]
[1765380482450,1.4341,3322.5,3322.4,0.15049]
[1765380482650,2.29288039,3322.5,3322.4,0.15049]
[1765380483046,1.4341,3322.2,3322.1,3.2078]
[1765380483250,2.38198039,3322.2,3322.1,3.21018658]
[1765380483450,2.38198039,3322.2,3322.1,3.94698658]
[1765380483451,1.56598039,3322.2,3322.1,3.94698658]
[1765380483659,2.29288039,3322.2,3322.1,3.21018658]
[1765380485561,0.85878039,3322.2,3322.1,4.68398658]
[1765380485854,0.004518,3322.5,3322.4,1.4738]
[1765380486161,0.004518,3322.5,3322.4,1.62429]
[1765380486462,0.004518,3322.5,3322.4,7.62429]
[1765380486651,0.86188938,3323.1,3323.0,1.62426]
[1765380486847,3.2078,3323.7,3323.5,0.7368]
[1765380487052,3.2078,3323.7,3323.1,0.15046]
[1765380487053,1.56771751,3323.6,3323.1,0.15046]
[1765380487262,0.86051751,3323.5,3323.1,0.15046]
[1765380487462,0.86051751,3323.4,3323.3,0.7368]
[1765380487661,3.2078,3323.7,3323.0,3.2078]
[1765380487662,3.212318,3323.7,3323.6,1.4738]
[1765380487958,0.86518377,3323.7,3323.6,1.62424]
[1765380488262,3.2078,3324.6,3324.2,1.4738]
[1765380488468,1.4341,3324.1,3324.0,0.15042]
[1765380488650,2.29498501,3324.1,3324.0,0.15042]
[1765380489261,1.4341,3323.8,3323.7,0.004518]
[1765380489662,2.29498501,3323.8,3323.7,0.004518]
[1765380490049,1.56808501,3323.8,3323.7,0.004518]
[1765380491255,0.86088501,3323.8,3323.7,1.431518]
[1765380491659,1.4195,3323.8,3323.7,0.004518]
[1765380491861,2.28038501,3323.8,3323.7,0.004518]
[1765380493467,5.48818501,3323.8,3323.7,0.004518]
[1765380495259,5.48818501,3323.8,3323.7,1.8e-05]
[1765380495456,1.4195,3323.3,3323.2,0.15046]
[1765380495661,2.28038501,3323.3,3323.2,0.15046]
[1765380496163,2.27772798,3323.3,3323.2,0.15046]
[1765380496358,2.27772798,3323.3,3322.9,3.212318]
[1765380496359,1.4195,3323.0,3322.9,3.212318]
[1765380496558,1.4195,3323.0,3322.9,0.004518]
[1765380496858,0.6951,3323.0,3322.9,0.004518]
[1765380497063,2.27807154,3323.0,3322.9,0.004518]
[1765380498465,5.48587154,3323.0,3322.9,0.004518]
[1765380500871,5.48584564,3323.0,3322.9,0.004518]
[1765380501467,1.4195,3322.2,3322.1,0.15288658]
[1765380501770,0.4041,3322.8,3322.2,0.1505]
[1765380502366,0.408618,3322.8,3322.2,0.155018]
[1765380502568,0.004518,3322.8,3322.3,1.51029]
[1765380503176,0.6951,3322.4,3322.3,1.51029]
[1765380503470,0.004518,3322.8,3322.7,1.51028]
[1765380504477,0.699618,3322.8,3322.7,0.82008]
[1765380504772,0.004518,3322.8,3322.7,1.51028]
[1765380506072,1.4195,3322.3,3322.2,0.004518]
[1765380506574,2.27869918,3322.3,3322.2,0.004518]
[1765380506975,2.27869918,3322.3,3321.7,0.15052]
[1765380506976,1.4195,3321.8,3321.7,0.15052]
[1765380507373,1.4195,3321.7,3321.6,3.2078]
[1765380507675,1.4195,3321.7,3321.0,0.55195]
[1765380507871,0.6653,3321.1,3321.0,0.82585]
[1765380508069,0.66791802,3321.1,3321.0,0.82876413]
[1765380508269,0.00261802,3321.1,3321.0,1.50196413]
[1765380508863,0.00261802,3321.1,3321.0,1.90586413]
[1765380509067,1.3722,3320.4,3320.3,0.15058]
[1765380509272,3.212318,3320.7,3320.3,1.49908]
[1765380509669,1.3722,3320.4,3320.3,0.15058]
[1765380510070,1.3722,3320.4,3320.3,0.00234714]
[1765380511270,3.212318,3320.7,3320.6,1.3485]
[1765380511577,4.584518,3320.7,3320.4,0.4039]
[1765380511776,4.584518,3320.7,3320.3,0.15293714]
[1765380511971,3.877618,3320.7,3320.4,0.15058]
[1765380512176,0.669818,3320.7,3320.4,0.55448]
[1765380512473,1.3722,3320.5,3320.4,0.15058]
[1765380512678,0.004518,3320.7,3320.4,0.82588]
[1765380513177,1.3722,3320.5,3320.4,0.15058]
[1765380513377,0.6653,3320.5,3320.4,0.15058]
[1765380514275,0.004518,3320.7,3320.6,0.6753]
[1765380514478,0.669818,3320.7,3320.6,0.6753]
[1765380514778,0.6653,3320.5,3320.4,0.82588]
[1765380515073,0.004518,3320.7,3320.6,1.49907]
[1765380516972,0.669818,3320.7,3320.6,0.82587]
[1765380517373,0.004518,3320.7,3320.6,1.49907]
[1765380517578,0.00261802,3321.1,3321.0,1.90296]
[1765380517880,2.01698173,3322.5,3321.0,1.90296]
[1765380517881,0.6653,3321.8,3321.7,0.15052]
[1765380518377,3.2078,3322.2,3321.7,1.49902]
[1765380518574,3.8731,3322.2,3322.1,0.6753]
[1765380518773,4.5823617,3322.2,3321.9,0.15051]
[1765380518977,3.2101617,3322.2,3322.1,1.3485]
[1765380519577,3.2101617,3322.2,3322.1,1.49901]
[1765380519876,4.5823617,3322.2,3322.1,0.15051]
[1765380521387,1.60638747,3324.5,3323.8,0.0008]
[1765380521580,1.60638747,3324.5,3322.2,6.1505]
[1765380521581,0.4179,3325.2,3324.5,0.1504]
[1765380521881,0.4179,3325.2,3324.8,0.15038]
[1765380522186,0.4179,3325.2,3325.1,3.35817]
[1765380522384,0.42055307,3325.2,3325.1,3.36110226]
[1765380522679,0.00265307,3325.2,3325.1,4.70960226]
[1765380525981,0.00451107,3325.5,3325.4,1.49886]
[1765380526883,0.00451107,3325.5,3325.4,0.82566]
[1765380526884,0.0078192,3325.5,3325.4,0.82566]
[1765380528689,0.0078192,3325.5,3325.4,0.15036]
[1765380528690,0.6731192,3325.5,3325.4,0.15036]
[1765380529290,0.0078192,3325.5,3325.4,0.15036]
[1765380529992,0.0078192,3325.5,3325.4,0.82566]
[1765380533698,1.7901,3325.2,3325.1,3.21073226]
[1765380534381,0.4179,3325.2,3325.1,3.88603226]
[1765380534584,0.4179,3325.2,3325.1,4.55923226]
[1765380534990,0.0078192,3325.5,3325.4,0.82566]
[1765380536495,1.3800192,3325.5,3325.4,0.15036]
[1765380536691,0.6731192,3325.5,3325.4,0.15036]
[1765380536889,0.0078192,3325.5,3325.4,1.49886]
[1765380537996,0.0078192,3325.5,3325.4,0.82566]
[1765380538292,0.0078192,3325.5,3325.4,2.15466]
[1765380540489,2.5905192,3325.5,3325.4,0.15036]
[1765380541995,1.3211192,3325.5,3325.4,1.38996]
[1765380542198,2.5905192,3325.5,3325.4,0.15036]
[1765380544687,3.3460192,3325.5,3325.4,0.15036]
[1765380549205,2.5827,3325.2,3325.1,3.07255195]
[1765380550208,3.27159201,3325.2,3325.1,3.07255195]
[1765380551804,2.4536,3324.9,3324.8,0.00451107]
[1765380552005,3.14249201,3324.9,3324.8,0.00451107]
[1765380552203,2.4536,3324.6,3324.5,3.08186824]
[1765380552406,3.14249201,3324.6,3324.5,3.08186824]
[1765380552709,3.222,3323.5,3323.4,3.2078]
[1765380553000,0.7684,3324.0,3323.4,3.21110914]
[1765380553198,0.00451107,3324.0,3323.9,2.5317]
[1765380553600,1.99381107,3324.0,3323.9,2.5317]
[1765380554711,0.00451107,3324.0,3323.9,2.68212]
[1765380555207,0.77291107,3324.0,3323.9,2.68212]
[1765380555805,1.99381107,3324.0,3323.9,1.43582]
[1765380557509,0.00451107,3324.0,3323.9,2.68212]
[1765380557809,3.9762,3325.0,3324.6,0.15039]
[1765380558010,1.9893,3325.0,3324.9,1.2854]
[1765380558208,1.9893,3325.0,3324.9,2.5317]
[1765380558209,0.7684,3325.0,3324.9,2.5317]
[1765380558511,0.77170813,3325.5,3325.0,0.15037]
[1765380558709,0.68932748,3325.4,3325.0,0.15037]
[1765380558907,1.2209,3325.1,3325.0,0.15037]
[1765380559108,0.77170813,3325.5,3325.0,2.68207]
[1765380559411,0.77170813,3325.5,3325.4,2.68206]
[1765380560000,1.99260813,3325.5,3325.4,1.43576]
[1765380560811,3.22530813,3325.5,3325.4,0.15036]
[1765380561307,2.4536,3325.4,3325.3,3.2078]
[1765380561512,2.4536,3325.2,3325.1,0.00451107]
[1765380561712,1.2209,3325.2,3325.1,1.28991107]
[1765380561911,2.4536,3325.2,3325.1,1.28991107]
[1765380562107,2.4536,3325.2,3325.1,0.00451107]
[1765380563111,3.1704479,3325.2,3325.1,0.00451107]
[1765380564802,3.1704479,3325.2,3324.4,3.2078]
[1765380564803,2.4536,3324.3,3324.2,1.43581]
[1765380565206,2.4536,3324.3,3324.0,3.2078]
[1765380565207,3.222,3324.5,3324.4,1.4358]
[1765380566510,1.9893,3324.5,3324.4,1.4358]
[1765380566912,3.222,3324.5,3324.4,0.1504]
[1765380567219,3.93915082,3324.5,3324.4,0.1504]
[1765380567711,3.93915082,3324.5,3324.4,1.4358]
[1765380567907,4.08825082,3324.5,3324.4,0.1504]
[1765380571312,3.3711,3324.5,3324.4,0.1504]
[1765380572616,2.7735,3324.2,3324.1,0.00451107]
[1765380573310,2.7735,3324.2,3324.1,1.29371107]
[1765380573513,2.7735,3324.2,3324.1,0.00451107]
[1765380575405,2.7735,3324.2,3324.1,1.29371107]
[1765380575620,3.9762,3324.5,3324.1,2.79922107]
[1765380575809,1.3917,3324.2,3324.1,2.79922107]
[1765380576317,2.7735,3324.2,3324.1,1.44412107]
[1765380577210,1.3917,3324.2,3324.1,2.79922107]
[1765380577618,2.7735,3324.2,3324.1,2.79922107]
[1765380577819,2.7735,3324.2,3324.1,1.44412107]
[1765380578019,1.3917,3324.2,3324.1,2.79922107]
[1765380578424,2.7735,3324.2,3324.1,2.79922107]
[1765380578723,1.3917,3324.2,3324.1,2.79922107]
[1765380579416,2.7735,3324.2,3324.1,2.79922107]
[1765380580421,2.7735,3324.2,3324.1,0.15492107]
[1765380580619,2.7735,3324.2,3324.1,1.44412107]
[1765380582021,2.7735,3324.2,3324.1,4.65192107]
[1765380582414,1.3917,3324.2,3324.1,6.00702107]
[1765380582614,2.7735,3324.2,3324.1,2.79922107]
[1765380582919,2.7735,3324.2,3324.1,0.15492107]
[1765380583719,2.7735,3324.2,3324.1,3.36272107]
[1765380583918,2.7735,3324.2,3324.1,4.65192107]
[1765380584421,2.7735,3324.2,3324.1,1.44412107]
[1765380584621,2.7735,3324.2,3324.1,1.107e-05]
[1765380584926,2.7735,3323.8,3323.7,3.2078]
[1765380585523,0.8015,3324.0,3323.9,1.2892]
[1765380585524,3.575,3324.0,3323.9,1.2892]
[1765380585728,3.575,3324.0,3323.7,3.2078]
[1765380585729,2.7735,3323.8,3323.7,4.497]
[1765380586525,2.7735,3323.8,3323.7,4.64743]
[1765380587021,2.1932,3324.0,3323.9,1.2892]
[1765380587224,3.575,3324.0,3323.9,1.2892]
[1765380587833,2.7735,3323.8,3323.7,6.00253]
[1765380588522,2.7735,3323.8,3323.7,4.64743]
[1765380588728,2.7735,3323.8,3323.7,3.35823]
[1765380591527,2.7735,3323.8,3323.7,4.64743]
[1765380591729,2.7735,3323.8,3323.7,3.35823]
[1765380592825,2.7735,3323.8,3323.7,4.64743]
[1765380593432,2.7735,3323.8,3323.7,3.35823]
[1765380594129,2.7735,3323.8,3323.7,4.64743]
[1765380594631,0.8015,3324.0,3323.7,4.64743]
[1765380594632,2.7735,3323.9,3323.8,1.43963]
[1765380595224,2.7735,3323.9,3323.8,0.15043]
[1765380596434,2.7735,3323.9,3323.8,2.79473]
[1765380597230,2.7735,3323.9,3323.8,1.43963]
[1765380597935,2.7735,3323.9,3323.8,0.15043]
[1765380598233,2.7735,3323.9,3323.7,3.2078]
[1765380598234,2.3998,3323.8,3323.7,3.2078]
[1765380598429,3.16095218,3323.8,3323.7,3.2078]
[1765380599431,2.3998,3323.8,3323.7,7.09128046]
[1765380599932,2.3998,3323.8,3323.7,5.92658046]
[1765380600134,2.3998,3323.8,3323.7,4.4179]
[1765380600434,2.9649,3323.5,3323.4,0.00330914]
[1765380600629,3.72611189,3323.5,3323.4,0.00330914]
[1765380601224,0.76121189,3323.5,3323.4,3.8867896]
[1765380601430,1.1493,3323.7,3323.6,2.3748]
[1765380601632,3.21231107,3323.8,3323.7,4.03391046]
[1765380602737,3.21231107,3323.8,3323.7,2.52523]
[1765380603527,3.2078,3324.7,3324.6,2.52519]
[1765380603941,1.15260813,3325.5,3325.4,2.3748]
[1765380604438,0.00330813,3325.5,3325.4,2.52516]
[1765380605924,3.2078,3326.7,3325.4,2.52516]
[1765380605925,3.16270432,3326.4,3326.3,1.2101]
[1765380606239,2.3998,3326.4,3326.3,1.2101]
[1765380606636,3.2078,3326.7,3326.6,2.3748]
[1765380606937,1.15171508,3326.7,3326.6,5.58537403]
[1765380607941,1.15171508,3326.7,3326.6,0.00277403]
[1765380607942,2.40221508,3326.7,3326.6,0.00277403]
[1765380608235,5.61001508,3326.7,3326.6,0.00277403]
[1765380608435,5.61001508,3326.7,3325.8,0.15034]
[1765380608436,3.0037,3325.9,3325.8,0.15034]
[1765380608835,0.8885,3326.5,3325.8,3.03244]
[1765380609047,3.21021508,3326.7,3325.8,3.03244]
[1765380609232,4.70261508,3326.7,3326.6,2.8821]
[1765380609539,0.00241508,3326.7,3326.6,2.88446786]
[1765380609735,3.00611508,3326.7,3326.6,0.00236786]
[1765380610741,9.00611508,3326.7,3326.6,0.00236786]
[1765380610943,9.00611508,3326.7,3326.1,3.2078]
[1765380610944,3.0037,3325.6,3325.5,3.2078]
[1765380611142,3.0037,3325.6,3325.5,4.6394]
[1765380611337,1.4924,3325.6,3325.5,6.0899]
[1765380611532,3.0037,3325.6,3325.5,3.2078]
[1765380612041,3.0037,3325.6,3325.5,3.2111307]
[1765380612349,3.0037,3325.6,3325.5,0.0033307]
[1765380612638,0.8729,3326.0,3325.5,3.7617307]
[1765380612846,3.2078,3326.1,3325.5,3.7617307]
[1765380613144,6.2115,3326.1,3325.5,0.8796307]
[1765380613646,3.0037,3325.6,3325.5,0.0033307]
[1765380613936,3.0037,3325.6,3325.5,1.4349307]
[1765380614143,3.0037,3325.6,3325.5,0.0033307]
[1765380616946,3.0037,3325.6,3325.5,1.4349307]
[1765380618948,1.4924,3325.6,3325.5,3.7617307]
[1765380619247,3.0037,3325.6,3325.5,0.0033307]
[1765380620040,3.0037,3325.6,3325.5,1.4349307]
[1765380620441,3.0037,3325.6,3325.5,2.8854307]
[1765380621346,3.0037,3326.0,3325.9,1.4505]
[1765380621544,3.0037,3325.6,3325.5,3.2111307]
[1765380621745,3.0037,3325.6,3325.5,0.0033307]
[1765380623050,3.0037,3325.2,3325.1,3.19997973]
[1765380623645,3.0037,3325.2,3325.1,4.63157973]
[1765380623846,3.2078,3325.7,3325.1,6.08207973]
[1765380624051,3.2078,3325.7,3325.1,6.08870022]
[1765380624450,6.2115,3325.7,3325.6,1.4316]
[1765380624746,1.4924,3326.1,3326.0,2.8821]
[1765380625154,3.0037,3326.1,3326.0,1.4316]
[1765380625448,1.4924,3325.9,3325.8,4.38870614]
[1765380625753,1.4924,3325.9,3325.8,2.8821]
[1765380625948,3.0037,3325.6,3325.5,5.5157]
[1765380626159,3.0037,3325.2,3325.1,1.43822049]
[1765380626454,1.4924,3325.2,3325.1,2.88872049]
[1765380626645,3.0037,3325.2,3325.1,1.43822049]
[1765380627247,0.3133,3326.0,3325.1,3.03909049]
[1765380627451,1.50660614,3325.9,3325.2,1.50660614]
[1765380627851,1.4924,3325.3,3325.2,2.8902]
[1765380628155,1.50660614,3325.7,3325.2,2.8902]
[1765380628357,2.771,3325.3,3325.2,1.4316]
[1765380628656,2.771,3325.3,3325.2,2.8902]
[1765380628657,1.4245,3325.3,3325.2,2.8902]
[1765380628853,1.50660614,3325.9,3325.2,4.39680614]
[1765380629059,0.3133,3326.0,3325.2,4.39680614]
[1765380629452,1.4245,3325.6,3325.5,6.8952]
[1765380629647,0.3133,3326.0,3325.9,1.3961]
[1765380629648,2.771,3326.0,3325.9,1.3961]
[1765380629856,2.771,3326.0,3325.5,5.54710614]
[1765380630353,2.771,3326.0,3325.9,1.3961]
[1765380630553,4.6323,3326.1,3326.0,3.6874]
[1765380630750,1.4245,3325.6,3325.5,7.04555]
[1765380631158,3.2078,3326.1,3325.5,7.04555]
[1765380631455,3.2078,3326.1,3325.6,1.50660614]
[1765380632253,3.2078,3326.5,3326.0,5.19400614]
[1765380632461,2.10949282,3326.4,3326.3,2.8547]
[1765380632659,3.2078,3326.5,3326.4,2.8547]
[1765380632860,1.42691508,3326.7,3326.6,2.8547]
[1765380633057,2.77341508,3326.7,3326.6,1.3961]
[1765380633259,2.771,3326.3,3326.2,1.54642]
[1765380633459,2.771,3326.3,3325.6,1.54645]
[1765380633460,2.771,3325.7,3325.6,1.54645]
[1765380633960,2.771,3325.7,3325.6,0.15035]
[1765380634161,2.771,3325.7,3325.6,1.54645]
[1765380635662,3.2078,3326.3,3325.6,3.00505]
[1765380635864,0.76301555,3326.2,3325.6,3.00505]
[1765380636064,1.4245,3325.7,3325.6,3.00505]
[1765380636365,2.771,3325.7,3325.6,1.54645]
[1765380636964,1.4245,3325.7,3325.6,3.00505]
[1765380637157,3.2078,3326.3,3325.6,3.00505]
[1765380637357,2.771,3325.6,3325.5,3.2078]
[1765380637562,2.771,3325.6,3325.5,6.0625]
[1765380637563,1.4245,3325.6,3325.5,6.0625]
[1765380637764,1.4245,3325.6,3325.5,6.8952]